[Event "Titled Tuesday Blitz May 31 Early 2022"]
[White "Bharath Subramaniyam H"]
[Black "Stepanencu, Nicodim-Cosmin"]
[WhiteFideId "46634827"]
[BlackFideId "1256220"]
[WhiteElo "2242"]
[BlackElo "1945"]
[Result "1-0"]
[Round "09"]
[TimeControl "180+1"]
[Date "2022.06.01"]
[WhiteClock "0:00:47"]
[BlackClock "0:00:02"]

1. e4 {[%clk 0:03:00]}  e6 {[%clk 0:01:33]} 2. d4 {[%clk 0:02:57]}  d5 {[%clk 0:01:34]} 3. Nc3 {[%clk 0:02:58]}  Nf6 {[%clk 0:01:34]} 4. Bg5 {[%clk 0:02:56]}  dxe4 {[%clk 0:01:32]} 5. Nxe4 {[%clk 0:02:55]}  Nbd7 {[%clk 0:01:33]} 6. Nf3 {[%clk 0:02:51]}  h6 {[%clk 0:01:32]} 7. Nxf6+ {[%clk 0:02:50]}  Nxf6 {[%clk 0:01:33]} 8. Be3 {[%clk 0:02:51]}  b6 {[%clk 0:01:33]} 9. Ne5 {[%clk 0:02:41]}  a6 {[%clk 0:01:31]} 10. c4 {[%clk 0:02:22]}  Bb7 {[%clk 0:01:29]} 11. Qa4+ {[%clk 0:02:21]}  c6 {[%clk 0:01:25]} 12. Be2 {[%clk 0:02:11]}  b5 {[%clk 0:01:21]} 13. Qb3 {[%clk 0:02:09]}  Qa5+ {[%clk 0:01:18]} 14. Bd2 {[%clk 0:02:05]}  Qb6 {[%clk 0:01:18]} 15. a4 {[%clk 0:01:47]}  Qxd4 {[%clk 0:00:57]} 16. Bc3 {[%clk 0:01:45]}  Qe4 {[%clk 0:00:58]} 17. axb5 {[%clk 0:01:41]}  cxb5 {[%clk 0:00:58]} 18. cxb5 {[%clk 0:01:20]}  Bd6 {[%clk 0:00:14]} 19. bxa6 {[%clk 0:01:09]}  Rxa6 {[%clk 0:00:08]} 20. Qb5+ {[%clk 0:00:54]}  Rc6 {[%clk 0:00:02]} 21. Qxb7 {[%clk 0:00:47]} 1-0


[Site "https://www.chess.com"]

[Event "Titled Tuesday Blitz May 31 Early 2022"]
[White "Blackman, Justin"]
[Black "Plazuelo Pascual, Juan"]
[WhiteFideId "11100516"]
[BlackFideId "32059566"]
[WhiteElo "2112"]
[BlackElo "2359"]
[Result "1-0"]
[Round "09"]
[TimeControl "180+1"]
[Date "2022.06.01"]
[WhiteClock "0:00:16"]
[BlackClock "0:00:01"]

1. e4 {[%clk 0:03:00]}  c5 {[%clk 0:02:59]} 2. Nf3 {[%clk 0:03:01]}  Nc6 {[%clk 0:03:00]} 3. Bb5 {[%clk 0:03:01]}  d6 {[%clk 0:02:58]} 4. O-O {[%clk 0:02:57]}  Bd7 {[%clk 0:02:58]} 5. Re1 {[%clk 0:02:55]}  a6 {[%clk 0:02:50]} 6. Bf1 {[%clk 0:02:52]}  Nf6 {[%clk 0:02:45]} 7. c4 {[%clk 0:02:51]}  Bg4 {[%clk 0:02:39]} 8. h3 {[%clk 0:02:47]}  Bxf3 {[%clk 0:02:39]} 9. Qxf3 {[%clk 0:02:48]}  Nd4 {[%clk 0:02:37]} 10. Qd1 {[%clk 0:02:48]}  e6 {[%clk 0:02:37]} 11. Nc3 {[%clk 0:02:48]}  Be7 {[%clk 0:02:36]} 12. d3 {[%clk 0:02:48]}  O-O {[%clk 0:02:34]} 13. Rb1 {[%clk 0:02:48]}  b5 {[%clk 0:02:29]} 14. a3 {[%clk 0:02:46]}  Rb8 {[%clk 0:02:27]} 15. b4 {[%clk 0:02:44]}  Qc7 {[%clk 0:02:22]} 16. Bf4 {[%clk 0:02:42]}  Nd7 {[%clk 0:02:19]} 17. bxc5 {[%clk 0:02:28]}  Qxc5 {[%clk 0:02:09]} 18. Be3 {[%clk 0:02:27]}  Bf6 {[%clk 0:02:09]} 19. a4 {[%clk 0:02:09]}  bxc4 {[%clk 0:01:53]} 20. dxc4 {[%clk 0:01:58]}  Rxb1 {[%clk 0:01:52]} 21. Qxb1 {[%clk 0:01:58]}  Ne5 {[%clk 0:01:51]} 22. Rc1 {[%clk 0:01:50]}  Nxc4 {[%clk 0:01:37]} 23. Kh1 {[%clk 0:01:46]}  Nxe3 {[%clk 0:01:36]} 24. fxe3 {[%clk 0:01:46]}  Nb3 {[%clk 0:00:43]} 25. Qxb3 {[%clk 0:01:41]}  Qxe3 {[%clk 0:00:44]} 26. Rc2 {[%clk 0:01:24]}  Bd4 {[%clk 0:00:40]} 27. Kh2 {[%clk 0:01:04]}  Qg1+ {[%clk 0:00:32]} 28. Kg3 {[%clk 0:01:05]}  Qxf1 {[%clk 0:00:33]} 29. Ne2 {[%clk 0:01:02]}  Qf2+ {[%clk 0:00:26]} 30. Kh2 {[%clk 0:00:55]}  Be5+ {[%clk 0:00:25]} 31. Kh1 {[%clk 0:00:55]}  Qe1+ {[%clk 0:00:15]} 32. Ng1 {[%clk 0:00:52]}  Qxe4 {[%clk 0:00:16]} 33. Rc4 {[%clk 0:00:45]}  Qe1 {[%clk 0:00:14]} 34. Qc2 {[%clk 0:00:43]}  h6 {[%clk 0:00:12]} 35. Re4 {[%clk 0:00:43]}  Qa1 {[%clk 0:00:09]} 36. Qd2 {[%clk 0:00:35]}  d5 {[%clk 0:00:08]} 37. Re1 {[%clk 0:00:35]}  Qc3 {[%clk 0:00:08]} 38. Qd1 {[%clk 0:00:36]}  Qg3 {[%clk 0:00:06]} 39. Nf3 {[%clk 0:00:36]}  Bd6 {[%clk 0:00:07]} 40. Qe2 {[%clk 0:00:33]}  Rb8 {[%clk 0:00:06]} 41. Rc1 {[%clk 0:00:27]}  Qf4 {[%clk 0:00:05]} 42. Qd1 {[%clk 0:00:24]}  Rb3 {[%clk 0:00:03]} 43. Rc8+ {[%clk 0:00:24]}  Kh7 {[%clk 0:00:03]} 44. Qc2+ {[%clk 0:00:21]}  Qe4 {[%clk 0:00:02]} 45. Qxb3 {[%clk 0:00:20]}  Qf4 {[%clk 0:00:02]} 46. Qb1+ {[%clk 0:00:21]}  g6 {[%clk 0:00:02]} 47. Qc1 {[%clk 0:00:20]}  Qe4 {[%clk 0:00:02]} 48. Rc2 {[%clk 0:00:18]}  e5 {[%clk 0:00:01]} 49. Qe1 {[%clk 0:00:18]}  Qf5 {[%clk 0:00:01]} 50. Rc6 {[%clk 0:00:17]}  Be7 {[%clk 0:00:01]} 51. Qxe5 {[%clk 0:00:16]} 1-0


[Site "https://www.chess.com"]

[Event "Titled Tuesday Blitz May 31 Early 2022"]
[White "Bluebaum, Matthias"]
[Black "Barria Zuniga, Daniel"]
[WhiteFideId "24651516"]
[BlackFideId "3400816"]
[WhiteElo "2556"]
[BlackElo "2414"]
[Result "1-0"]
[Round "09"]
[TimeControl "180+1"]
[Date "2022.05.31"]
[WhiteClock "0:01:14"]
[BlackClock "0:00:04"]

1. d4 {[%clk 0:02:57]}  d5 {[%clk 0:02:51]} 2. Nc3 {[%clk 0:02:57]}  e6 {[%clk 0:02:51]} 3. e4 {[%clk 0:02:56]}  Bb4 {[%clk 0:02:51]} 4. exd5 {[%clk 0:02:53]}  exd5 {[%clk 0:02:50]} 5. Bd3 {[%clk 0:02:54]}  Nc6 {[%clk 0:02:50]} 6. Ne2 {[%clk 0:02:53]}  Bg4 {[%clk 0:02:48]} 7. f3 {[%clk 0:02:53]}  Bh5 {[%clk 0:02:47]} 8. O-O {[%clk 0:02:53]}  Nge7 {[%clk 0:02:46]} 9. Bf4 {[%clk 0:02:52]}  Qd7 {[%clk 0:02:43]} 10. a3 {[%clk 0:02:52]}  Ba5 {[%clk 0:02:42]} 11. Qd2 {[%clk 0:02:52]}  f6 {[%clk 0:02:40]} 12. Kh1 {[%clk 0:02:52]}  O-O {[%clk 0:02:23]} 13. Rae1 {[%clk 0:02:49]}  Bg6 {[%clk 0:02:15]} 14. Bg3 {[%clk 0:02:35]}  Rae8 {[%clk 0:02:08]} 15. Nf4 {[%clk 0:02:14]}  Bf7 {[%clk 0:02:01]} 16. Bf2 {[%clk 0:02:14]}  Nf5 {[%clk 0:01:56]} 17. b4 {[%clk 0:01:56]}  Bb6 {[%clk 0:01:54]} 18. Ncxd5 {[%clk 0:01:54]}  Bxd5 {[%clk 0:01:43]} 19. Nxd5 {[%clk 0:01:55]}  Qxd5 {[%clk 0:01:11]} 20. c4 {[%clk 0:01:54]}  Qd7 {[%clk 0:01:11]} 21. c5 {[%clk 0:01:54]}  Nfxd4 {[%clk 0:01:08]} 22. cxb6 {[%clk 0:01:48]}  Rxe1 {[%clk 0:01:05]} 23. Rxe1 {[%clk 0:01:47]}  Rd8 {[%clk 0:01:04]} 24. Bc4+ {[%clk 0:01:36]}  Kf8 {[%clk 0:01:03]} 25. b5 {[%clk 0:01:22]}  Ne5 {[%clk 0:00:58]} 26. Qb4+ {[%clk 0:01:23]}  Ke8 {[%clk 0:00:14]} 27. Bxd4 {[%clk 0:01:21]}  Qxd4 {[%clk 0:00:13]} 28. bxc7 {[%clk 0:01:22]}  Rc8 {[%clk 0:00:08]} 29. Bf7+ {[%clk 0:01:22]}  Kxf7 {[%clk 0:00:07]} 30. Qxd4 {[%clk 0:01:23]}  Rxc7 {[%clk 0:00:07]} 31. h3 {[%clk 0:01:18]}  Re7 {[%clk 0:00:06]} 32. Qxa7 {[%clk 0:01:16]}  b6 {[%clk 0:00:05]} 33. Qxb6 {[%clk 0:01:15]}  Nc4 {[%clk 0:00:04]} 34. Rxe7+ {[%clk 0:01:14]} 1-0


[Site "https://www.chess.com"]

[Event "Titled Tuesday Blitz May 31 Early 2022"]
[White "Bortnyk, Olexandr"]
[Black "Xiong, Jeffery"]
[WhiteFideId "14120828"]
[BlackFideId "2047640"]
[WhiteElo "2723"]
[BlackElo "2727"]
[Result "1-0"]
[Round "09"]
[TimeControl "180+1"]
[Date "2022.05.31"]
[WhiteClock "0:00:02"]
[BlackClock "0:00:02"]

1. d4 {[%clk 0:03:00]}  Nf6 {[%clk 0:02:55]} 2. Nc3 {[%clk 0:03:00]}  d5 {[%clk 0:02:55]} 3. Bf4 {[%clk 0:03:00]}  e6 {[%clk 0:02:55]} 4. Nb5 {[%clk 0:03:00]}  Na6 {[%clk 0:02:56]} 5. e3 {[%clk 0:03:01]}  Be7 {[%clk 0:02:55]} 6. Nf3 {[%clk 0:03:01]}  O-O {[%clk 0:02:55]} 7. Ne5 {[%clk 0:03:01]}  Nd7 {[%clk 0:02:49]} 8. Nc3 {[%clk 0:02:54]}  Nxe5 {[%clk 0:02:46]} 9. Bxe5 {[%clk 0:02:55]}  c5 {[%clk 0:02:35]} 10. Bxa6 {[%clk 0:02:55]}  bxa6 {[%clk 0:02:36]} 11. O-O {[%clk 0:02:54]}  f6 {[%clk 0:02:35]} 12. Bg3 {[%clk 0:02:54]}  Bb7 {[%clk 0:02:30]} 13. Na4 {[%clk 0:02:51]}  cxd4 {[%clk 0:02:29]} 14. exd4 {[%clk 0:02:52]}  Bc6 {[%clk 0:02:29]} 15. Nc3 {[%clk 0:02:38]}  Qb6 {[%clk 0:02:28]} 16. Qe2 {[%clk 0:02:24]}  Bb7 {[%clk 0:01:50]} 17. Rfe1 {[%clk 0:02:21]}  Kf7 {[%clk 0:01:50]} 18. Qh5+ {[%clk 0:02:15]}  Kg8 {[%clk 0:01:50]} 19. Qe2 {[%clk 0:02:14]}  Kf7 {[%clk 0:01:50]} 20. Na4 {[%clk 0:02:00]}  Qc6 {[%clk 0:01:49]} 21. b3 {[%clk 0:01:47]}  Rfe8 {[%clk 0:01:49]} 22. Qd3 {[%clk 0:01:19]}  Kg8 {[%clk 0:01:47]} 23. Re2 {[%clk 0:01:19]}  a5 {[%clk 0:01:46]} 24. Qd2 {[%clk 0:01:13]}  Bb4 {[%clk 0:01:25]} 25. c3 {[%clk 0:01:13]}  Bf8 {[%clk 0:01:24]} 26. Rae1 {[%clk 0:01:13]}  Rac8 {[%clk 0:01:24]} 27. f4 {[%clk 0:01:08]}  Ba6 {[%clk 0:01:15]} 28. Re3 {[%clk 0:01:08]}  Bb5 {[%clk 0:01:15]} 29. Nb2 {[%clk 0:01:04]}  a4 {[%clk 0:01:15]} 30. Nxa4 {[%clk 0:00:56]}  Bxa4 {[%clk 0:01:15]} 31. bxa4 {[%clk 0:00:57]}  Qxa4 {[%clk 0:00:49]} 32. Rxe6 {[%clk 0:00:56]}  Rxe6 {[%clk 0:00:50]} 33. Rxe6 {[%clk 0:00:56]}  Qc4 {[%clk 0:00:51]} 34. Re3 {[%clk 0:00:50]}  Rb8 {[%clk 0:00:51]} 35. f5 {[%clk 0:00:48]}  Rb1+ {[%clk 0:00:50]} 36. Re1 {[%clk 0:00:48]}  Rb7 {[%clk 0:00:43]} 37. h3 {[%clk 0:00:43]}  Qc8 {[%clk 0:00:36]} 38. Re6 {[%clk 0:00:40]}  Rb1+ {[%clk 0:00:30]} 39. Kh2 {[%clk 0:00:40]}  Qc4 {[%clk 0:00:29]} 40. Re8 {[%clk 0:00:35]}  Qf1 {[%clk 0:00:27]} 41. Bd6 {[%clk 0:00:32]}  h5 {[%clk 0:00:21]} 42. Kg3 {[%clk 0:00:10]}  Kh7 {[%clk 0:00:15]} 43. Bxf8 {[%clk 0:00:03]}  Rd1 {[%clk 0:00:11]} 44. Qe2 {[%clk 0:00:04]}  h4+ {[%clk 0:00:09]} 45. Kg4 {[%clk 0:00:03]}  Qg1 {[%clk 0:00:07]} 46. Re7 {[%clk 0:00:02]}  Rf1 {[%clk 0:00:02]} 47. Rxg7+ {[%clk 0:00:02]}  Kh8 {[%clk 0:00:03]} 48. Rh7+ {[%clk 0:00:02]}  Kg8 {[%clk 0:00:03]} 49. Qe6+ {[%clk 0:00:02]}  Kxh7 {[%clk 0:00:02]} 50. Qf7+ {[%clk 0:00:02]} 1-0


[Site "https://www.chess.com"]

[Event "Titled Tuesday Blitz May 31 Early 2022"]
[White "Brodowski, Piotr"]
[Black "Aradhya, Garg"]
[WhiteFideId "1124480"]
[BlackFideId "25006746"]
[WhiteElo "2431"]
[BlackElo "2169"]
[Result "1-0"]
[Round "09"]
[TimeControl "180+1"]
[Date "2022.05.31"]
[WhiteClock "0:00:37"]
[BlackClock "0:00:11"]

1. d4 {[%clk 0:03:00]}  d5 {[%clk 0:03:00]} 2. c4 {[%clk 0:02:59]}  c6 {[%clk 0:03:00]} 3. Nc3 {[%clk 0:02:57]}  Nf6 {[%clk 0:03:00]} 4. e3 {[%clk 0:02:56]}  Nbd7 {[%clk 0:03:00]} 5. Nf3 {[%clk 0:02:56]}  e6 {[%clk 0:03:00]} 6. Qc2 {[%clk 0:02:55]}  Be7 {[%clk 0:02:59]} 7. Bd3 {[%clk 0:02:53]}  O-O {[%clk 0:02:59]} 8. g4 {[%clk 0:02:52]}  dxc4 {[%clk 0:02:57]} 9. Bxc4 {[%clk 0:02:51]}  Nxg4 {[%clk 0:02:57]} 10. Rg1 {[%clk 0:02:50]}  Ngf6 {[%clk 0:02:57]} 11. e4 {[%clk 0:02:48]}  b5 {[%clk 0:02:57]} 12. Bd3 {[%clk 0:02:47]}  b4 {[%clk 0:02:57]} 13. Ne2 {[%clk 0:02:45]}  Qa5 {[%clk 0:02:38]} 14. b3 {[%clk 0:02:34]}  e5 {[%clk 0:02:31]} 15. Ng3 {[%clk 0:02:24]}  Nb6 {[%clk 0:02:02]} 16. dxe5 {[%clk 0:02:19]}  Ng4 {[%clk 0:01:58]} 17. Bf4 {[%clk 0:02:11]}  Qc5 {[%clk 0:01:53]} 18. h3 {[%clk 0:02:06]}  Nxf2 {[%clk 0:01:50]} 19. Qxf2 {[%clk 0:01:48]}  Qc3+ {[%clk 0:01:50]} 20. Ke2 {[%clk 0:01:48]}  Bc5 {[%clk 0:01:39]} 21. Qe1 {[%clk 0:01:41]}  Qb2+ {[%clk 0:01:37]} 22. Qd2 {[%clk 0:01:40]}  Qxd2+ {[%clk 0:01:37]} 23. Bxd2 {[%clk 0:01:38]}  Bxg1 {[%clk 0:01:37]} 24. Rxg1 {[%clk 0:01:38]}  a5 {[%clk 0:01:28]} 25. Nh5 {[%clk 0:01:37]}  g6 {[%clk 0:01:28]} 26. Nf6+ {[%clk 0:01:37]}  Kg7 {[%clk 0:01:22]} 27. Nd4 {[%clk 0:01:11]}  Kh8 {[%clk 0:00:39]} 28. Bh6 {[%clk 0:00:57]}  Rd8 {[%clk 0:00:38]} 29. Nxc6 {[%clk 0:00:58]}  Rxd3 {[%clk 0:00:31]} 30. Kxd3 {[%clk 0:00:58]}  Ba6+ {[%clk 0:00:31]} 31. Ke3 {[%clk 0:00:59]}  Rc8 {[%clk 0:00:31]} 32. Ne7 {[%clk 0:00:53]}  Rc3+ {[%clk 0:00:30]} 33. Kf4 {[%clk 0:00:53]}  Be2 {[%clk 0:00:27]} 34. Rg3 {[%clk 0:00:50]}  a4 {[%clk 0:00:21]} 35. Nf5 {[%clk 0:00:37]}  Rxg3 {[%clk 0:00:11]} 36. Bg7# {[%clk 0:00:37]} 1-0


[Site "https://www.chess.com"]

[Event "Titled Tuesday Blitz May 31 Early 2022"]
[White "Buchenau, Frank"]
[Black "Jaferian, Koosha"]
[WhiteFideId "4604350"]
[BlackFideId "12507440"]
[WhiteElo "2157"]
[BlackElo "2030"]
[Result "0-1"]
[Round "09"]
[TimeControl "180+1"]
[Date "2022.06.01"]
[WhiteClock "0:00:09"]
[BlackClock "0:00:19"]

1. e4 {[%clk 0:03:00]}  c6 {[%clk 0:03:00]} 2. Nf3 {[%clk 0:03:00]}  d5 {[%clk 0:03:01]} 3. Nc3 {[%clk 0:03:01]}  Bg4 {[%clk 0:03:01]} 4. d4 {[%clk 0:03:00]}  e6 {[%clk 0:03:00]} 5. Bd3 {[%clk 0:02:59]}  Nf6 {[%clk 0:02:58]} 6. e5 {[%clk 0:02:54]}  Nfd7 {[%clk 0:02:58]} 7. Ne2 {[%clk 0:02:48]}  c5 {[%clk 0:02:55]} 8. c3 {[%clk 0:02:48]}  Nc6 {[%clk 0:02:55]} 9. Be3 {[%clk 0:02:42]}  Bxf3 {[%clk 0:02:45]} 10. gxf3 {[%clk 0:02:41]}  g6 {[%clk 0:02:46]} 11. f4 {[%clk 0:02:34]}  Qb6 {[%clk 0:02:43]} 12. Qd2 {[%clk 0:02:29]}  cxd4 {[%clk 0:02:36]} 13. cxd4 {[%clk 0:02:28]}  Bb4 {[%clk 0:02:36]} 14. Nc3 {[%clk 0:02:27]}  Rc8 {[%clk 0:02:08]} 15. Kf1 {[%clk 0:02:24]}  Qa5 {[%clk 0:02:01]} 16. Kg2 {[%clk 0:02:17]}  Bxc3 {[%clk 0:02:01]} 17. bxc3 {[%clk 0:02:16]}  Ne7 {[%clk 0:01:58]} 18. Rhc1 {[%clk 0:02:06]}  O-O {[%clk 0:01:58]} 19. c4 {[%clk 0:02:01]}  Qxd2 {[%clk 0:01:57]} 20. Bxd2 {[%clk 0:02:01]}  dxc4 {[%clk 0:01:58]} 21. Bxc4 {[%clk 0:01:56]}  Nf5 {[%clk 0:01:58]} 22. Be3 {[%clk 0:01:36]}  Nb6 {[%clk 0:01:55]} 23. Bb3 {[%clk 0:01:34]}  Rfd8 {[%clk 0:01:42]} 24. Rxc8 {[%clk 0:01:29]}  Rxc8 {[%clk 0:01:42]} 25. Kf3 {[%clk 0:01:28]}  Rc3 {[%clk 0:01:36]} 26. Ke4 {[%clk 0:01:26]}  Nc4 {[%clk 0:01:27]} 27. Rc1 {[%clk 0:01:16]}  Rxc1 {[%clk 0:01:06]} 28. Bxc1 {[%clk 0:01:17]}  Nb6 {[%clk 0:01:06]} 29. d5 {[%clk 0:01:11]}  exd5+ {[%clk 0:01:01]} 30. Bxd5 {[%clk 0:01:12]}  Nxd5 {[%clk 0:01:01]} 31. Kxd5 {[%clk 0:01:12]}  Kf8 {[%clk 0:01:02]} 32. e6 {[%clk 0:00:46]}  Ke7 {[%clk 0:00:32]} 33. Ba3+ {[%clk 0:00:41]}  Kf6 {[%clk 0:00:33]} 34. Bb2+ {[%clk 0:00:37]}  Ke7 {[%clk 0:00:34]} 35. Ba3+ {[%clk 0:00:34]}  Ke8 {[%clk 0:00:34]} 36. Ke5 {[%clk 0:00:26]}  Nh4 {[%clk 0:00:19]} 37. Kf6 {[%clk 0:00:17]}  fxe6 {[%clk 0:00:19]} 38. Kxe6 {[%clk 0:00:16]}  Nf3 {[%clk 0:00:19]} 39. h3 {[%clk 0:00:16]}  Ng1 {[%clk 0:00:20]} 40. h4 {[%clk 0:00:15]}  Nf3 {[%clk 0:00:20]} 41. h5 {[%clk 0:00:15]}  gxh5 {[%clk 0:00:21]} 42. Kf5 {[%clk 0:00:11]}  Kf7 {[%clk 0:00:19]} 43. Ke4 {[%clk 0:00:11]}  Nd2+ {[%clk 0:00:18]} 44. Ke3 {[%clk 0:00:10]}  Nc4+ {[%clk 0:00:18]} 45. Kf3 {[%clk 0:00:09]}  Nxa3 {[%clk 0:00:19]} 0-1


[Site "https://www.chess.com"]

[Event "Titled Tuesday Blitz May 31 Early 2022"]
[White "Chernobay, Artem"]
[Black "Swiercz, Dariusz"]
[WhiteFideId "4167406"]
[BlackFideId "1126881"]
[WhiteElo "2473"]
[BlackElo "2627"]
[Result "0-1"]
[Round "09"]
[TimeControl "180+1"]
[Date "2022.05.31"]
[WhiteClock "0:00:12"]
[BlackClock "0:00:02"]

1. e4 {[%clk 0:03:00]}  e6 {[%clk 0:02:55]} 2. d4 {[%clk 0:03:00]}  d5 {[%clk 0:02:56]} 3. Nc3 {[%clk 0:03:01]}  Bb4 {[%clk 0:02:55]} 4. e5 {[%clk 0:02:57]}  c5 {[%clk 0:02:55]} 5. Bd2 {[%clk 0:02:55]}  Ne7 {[%clk 0:02:53]} 6. Nb5 {[%clk 0:02:43]}  Bxd2+ {[%clk 0:02:53]} 7. Qxd2 {[%clk 0:02:44]}  O-O {[%clk 0:02:53]} 8. dxc5 {[%clk 0:02:38]}  Nd7 {[%clk 0:02:41]} 9. Nf3 {[%clk 0:02:38]}  Nc6 {[%clk 0:02:35]} 10. Qe3 {[%clk 0:02:24]}  f6 {[%clk 0:02:29]} 11. exf6 {[%clk 0:02:21]}  Qxf6 {[%clk 0:02:30]} 12. O-O-O {[%clk 0:02:19]}  Nde5 {[%clk 0:02:01]} 13. Be2 {[%clk 0:02:09]}  Bd7 {[%clk 0:01:53]} 14. Nxe5 {[%clk 0:02:00]}  Nxe5 {[%clk 0:01:47]} 15. Nd6 {[%clk 0:01:57]}  b6 {[%clk 0:01:38]} 16. cxb6 {[%clk 0:01:37]}  axb6 {[%clk 0:01:39]} 17. Kb1 {[%clk 0:01:37]}  b5 {[%clk 0:01:09]} 18. Nxb5 {[%clk 0:01:10]}  Rfb8 {[%clk 0:01:03]} 19. Nd4 {[%clk 0:01:06]}  Ng6 {[%clk 0:00:50]} 20. g3 {[%clk 0:00:58]}  e5 {[%clk 0:00:46]} 21. Nb3 {[%clk 0:00:58]}  d4 {[%clk 0:00:47]} 22. Qf3 {[%clk 0:00:47]}  Qb6 {[%clk 0:00:36]} 23. h4 {[%clk 0:00:35]}  Bc6 {[%clk 0:00:30]} 24. Bc4+ {[%clk 0:00:36]}  Kh8 {[%clk 0:00:29]} 25. Bd5 {[%clk 0:00:37]}  Rf8 {[%clk 0:00:12]} 26. Qe4 {[%clk 0:00:36]}  Bxd5 {[%clk 0:00:11]} 27. Qxd5 {[%clk 0:00:37]}  Qa7 {[%clk 0:00:12]} 28. a3 {[%clk 0:00:35]}  Rxf2 {[%clk 0:00:06]} 29. h5 {[%clk 0:00:35]}  Ne7 {[%clk 0:00:06]} 30. Qxe5 {[%clk 0:00:34]}  Nc6 {[%clk 0:00:06]} 31. Qe4 {[%clk 0:00:32]}  Rc8 {[%clk 0:00:03]} 32. h6 {[%clk 0:00:32]}  Rf6 {[%clk 0:00:02]} 33. hxg7+ {[%clk 0:00:31]}  Qxg7 {[%clk 0:00:02]} 34. Rdf1 {[%clk 0:00:30]}  Rxf1+ {[%clk 0:00:02]} 35. Rxf1 {[%clk 0:00:31]}  Ne5 {[%clk 0:00:02]} 36. Nxd4 {[%clk 0:00:29]}  Nc4 {[%clk 0:00:02]} 37. Rd1 {[%clk 0:00:26]}  Rb8 {[%clk 0:00:02]} 38. Ka1 {[%clk 0:00:24]}  Nxb2 {[%clk 0:00:02]} 39. Re1 {[%clk 0:00:23]}  Nc4 {[%clk 0:00:02]} 40. Qd5 {[%clk 0:00:21]}  Nxa3 {[%clk 0:00:02]} 41. Qc5 {[%clk 0:00:19]}  Nxc2+ {[%clk 0:00:02]} 42. Ka2 {[%clk 0:00:13]}  Nxe1 {[%clk 0:00:02]} 43. Qb5 {[%clk 0:00:12]}  Rxb5 {[%clk 0:00:02]} 0-1


[Site "https://www.chess.com"]

[Event "Titled Tuesday Blitz May 31 Early 2022"]
[White "Costachi, Mihnea"]
[Black "Hasangatin, Ramil"]
[WhiteFideId "1217518"]
[BlackFideId "4122160"]
[WhiteElo "2476"]
[BlackElo "2399"]
[Result "0-1"]
[Round "09"]
[TimeControl "180+1"]
[Date "2022.05.31"]
[WhiteClock "0:00:48"]
[BlackClock "0:00:57"]

1. d4 {[%clk 0:03:00]}  Nf6 {[%clk 0:02:59]} 2. Bg5 {[%clk 0:03:00]}  e6 {[%clk 0:02:59]} 3. e3 {[%clk 0:02:59]}  h6 {[%clk 0:02:59]} 4. Bh4 {[%clk 0:02:59]}  g5 {[%clk 0:02:52]} 5. Bg3 {[%clk 0:02:59]}  Ne4 {[%clk 0:02:53]} 6. Bd3 {[%clk 0:02:57]}  Nxg3 {[%clk 0:02:51]} 7. hxg3 {[%clk 0:02:58]}  Bg7 {[%clk 0:02:50]} 8. c4 {[%clk 0:02:56]}  c5 {[%clk 0:02:45]} 9. Ne2 {[%clk 0:02:54]}  Nc6 {[%clk 0:02:44]} 10. Be4 {[%clk 0:02:46]}  cxd4 {[%clk 0:02:35]} 11. Bxc6 {[%clk 0:02:43]}  dxc6 {[%clk 0:02:30]} 12. exd4 {[%clk 0:02:42]}  c5 {[%clk 0:02:29]} 13. d5 {[%clk 0:02:31]}  Bxb2 {[%clk 0:02:24]} 14. Nd2 {[%clk 0:02:25]}  exd5 {[%clk 0:02:18]} 15. Rb1 {[%clk 0:02:25]}  Bg7 {[%clk 0:02:15]} 16. cxd5 {[%clk 0:02:25]}  Qxd5 {[%clk 0:02:14]} 17. O-O {[%clk 0:02:25]}  O-O {[%clk 0:02:12]} 18. Qc1 {[%clk 0:02:22]}  Bg4 {[%clk 0:02:07]} 19. Nc3 {[%clk 0:02:20]}  Qd3 {[%clk 0:01:58]} 20. Nce4 {[%clk 0:02:19]}  b6 {[%clk 0:01:53]} 21. Rb3 {[%clk 0:02:14]}  Qd5 {[%clk 0:01:52]} 22. f3 {[%clk 0:02:13]}  Be6 {[%clk 0:01:51]} 23. Kh2 {[%clk 0:02:05]}  Rad8 {[%clk 0:01:50]} 24. Nb1 {[%clk 0:02:00]}  f5 {[%clk 0:01:39]} 25. Nf2 {[%clk 0:01:54]}  Bd4 {[%clk 0:01:32]} 26. Rd3 {[%clk 0:01:43]}  Qc4 {[%clk 0:01:29]} 27. Qd1 {[%clk 0:01:37]}  Qxa2 {[%clk 0:01:25]} 28. Nh3 {[%clk 0:01:30]}  Bc4 {[%clk 0:01:25]} 29. Re1 {[%clk 0:01:22]}  Bxd3 {[%clk 0:01:20]} 30. Qxd3 {[%clk 0:01:22]}  Bg7 {[%clk 0:01:20]} 31. Qb5 {[%clk 0:01:16]}  Qf7 {[%clk 0:01:13]} 32. Na3 {[%clk 0:01:15]}  Rfe8 {[%clk 0:01:13]} 33. Rf1 {[%clk 0:01:13]}  Qd7 {[%clk 0:01:10]} 34. Qc4+ {[%clk 0:01:10]}  Qd5 {[%clk 0:01:10]} 35. Qa4 {[%clk 0:01:09]}  a6 {[%clk 0:01:05]} 36. Qxa6 {[%clk 0:01:07]}  Qd3 {[%clk 0:01:04]} 37. Qxd3 {[%clk 0:01:05]}  Rxd3 {[%clk 0:01:03]} 38. Nb5 {[%clk 0:01:05]}  Re2 {[%clk 0:00:59]} 39. Ng1 {[%clk 0:01:00]}  Rb2 {[%clk 0:00:58]} 40. Nc7 {[%clk 0:01:00]}  Rdd2 {[%clk 0:00:58]} 41. Nh3 {[%clk 0:00:47]}  Rxg2+ {[%clk 0:00:56]} 42. Kh1 {[%clk 0:00:47]}  Rh2+ {[%clk 0:00:57]} 43. Kg1 {[%clk 0:00:48]}  Rbg2# {[%clk 0:00:57]} 0-1


[Site "https://www.chess.com"]

[Event "Titled Tuesday Blitz May 31 Early 2022"]
[White "De La Colina, Nicolas"]
[Black "Urazayev, Arystanbek"]
[WhiteFideId "30946921"]
[BlackFideId "13709810"]
[WhiteElo "2046"]
[BlackElo "2422"]
[Result "0-1"]
[Round "09"]
[TimeControl "180+1"]
[Date "2022.05.31"]
[WhiteClock "0:01:41"]
[BlackClock "0:02:31"]

1. c4 {[%clk 0:03:00]}  e5 {[%clk 0:02:59]} 2. Nc3 {[%clk 0:03:00]}  Nf6 {[%clk 0:02:59]} 3. Nf3 {[%clk 0:02:59]}  Nc6 {[%clk 0:02:59]} 4. e3 {[%clk 0:02:59]}  Bb4 {[%clk 0:02:58]} 5. Qc2 {[%clk 0:02:59]}  Bxc3 {[%clk 0:02:58]} 6. bxc3 {[%clk 0:02:59]}  O-O {[%clk 0:02:58]} 7. e4 {[%clk 0:02:59]}  d6 {[%clk 0:02:57]} 8. g3 {[%clk 0:02:58]}  a6 {[%clk 0:02:56]} 9. a4 {[%clk 0:02:52]}  Na5 {[%clk 0:02:54]} 10. d3 {[%clk 0:02:51]}  Bd7 {[%clk 0:02:51]} 11. Bg2 {[%clk 0:02:48]}  b5 {[%clk 0:02:51]} 12. axb5 {[%clk 0:02:46]}  axb5 {[%clk 0:02:52]} 13. cxb5 {[%clk 0:02:44]}  Bxb5 {[%clk 0:02:52]} 14. O-O {[%clk 0:02:43]}  c5 {[%clk 0:02:51]} 15. Bg5 {[%clk 0:02:38]}  h6 {[%clk 0:02:44]} 16. Bd2 {[%clk 0:02:27]}  c4 {[%clk 0:02:40]} 17. d4 {[%clk 0:02:26]}  Nb3 {[%clk 0:02:35]} 18. Rxa8 {[%clk 0:02:22]}  Qxa8 {[%clk 0:02:36]} 19. dxe5 {[%clk 0:02:23]}  Qxe4 {[%clk 0:02:36]} 20. Qxe4 {[%clk 0:01:53]}  Nxe4 {[%clk 0:02:37]} 21. Bf4 {[%clk 0:01:39]}  Nxc3 {[%clk 0:02:31]} 22. exd6 {[%clk 0:01:39]}  Ne2+ {[%clk 0:02:30]} 23. Kh1 {[%clk 0:01:40]}  Nxf4 {[%clk 0:02:31]} 24. gxf4 {[%clk 0:01:41]}  c3 {[%clk 0:02:31]} 0-1


[Site "https://www.chess.com"]